fUSD/lending_fUSD_20240215
["ID","MTS","AMOUNT","RATE_DAILY","PERIOD"]
[314165955,1708037440534,-508.32973853,0.00038647,7]
[314165956,1708037440544,-500.0,0.00038647,7]
[314165957,1708037440553,-500.0,0.00038647,7]
[314165958,1708037440562,-500.0,0.00038647,7]
[314165959,1708037440572,-500.0,0.00038647,7]
[314165960,1708037440581,-500.0,0.00038647,7]
[314165961,1708037440590,-500.0,0.00038647,7]
[314165962,1708037440599,-500.0,0.00038647,7]
[314165963,1708037440608,-500.0,0.00038647,7]
[314165964,1708037440617,-500.0,0.00038647,7]
[314165965,1708037440626,-402.78135111,0.00038647,7]
[314165966,1708037440635,-500.0,0.00038647,7]
[314165967,1708037440644,-500.0,0.00038647,7]
[314165968,1708037440653,-500.0,0.00038647,7]
[314165969,1708037440663,-573.54,0.00038647,7]
[314165970,1708037440673,-1181.32229375,0.00038647,7]
[314165971,1708037440975,-420.02770625,0.00038647,7]
[314165972,1708037440984,-505.44226708,0.00038647,7]
[314165973,1708037440993,-500.0,0.00038647,7]
[314165974,1708037441003,-500.0,0.00038647,7]
[314165975,1708037441012,-500.0,0.00038647,7]
[314165976,1708037441021,-500.0,0.00038647,7]
[314165977,1708037441030,-500.0,0.00038647,7]
[314165978,1708037441040,-583.92,0.00038647,7]
[314165979,1708037441050,-500.0,0.00038647,7]
[314165980,1708037441059,-500.0,0.00038647,7]
[314165981,1708037441068,-1000.0,0.00038647,7]
[314165982,1708037441078,-500.0,0.00038647,7]
[314165983,1708037441088,-500.0,0.00038647,7]
[314165984,1708037441097,-489.90443731,0.00038647,7]
[314165986,1708037441109,-10.09556269,0.00038647,7]
[314165988,1708037441118,-500.0,0.00038647,7]
[314165990,1708037441127,-123.99286207,0.00038647,7]
[314166010,1708037442472,-376.00713793,0.00038647,7]
[314166012,1708037442482,-37.51738656,0.00038647,7]
[314166014,1708037442494,-462.48261344,0.00038647,7]
[314166016,1708037442505,-500.0,0.00038647,7]
[314166017,1708037442515,-367.29645039,0.00038647,7]
[314166018,1708037442528,-132.70354961,0.00038647,7]
[314166019,1708037442540,-500.0,0.00038647,7]
[314166020,1708037442549,-500.0,0.00038647,7]
[314166021,1708037442558,-500.0,0.00038647,7]
[314166022,1708037442567,-344.42516709,0.00038647,7]
[314166023,1708037442588,-155.57483291,0.00038647,7]
[314166024,1708037442597,-679.03,0.00038647,7]
[314166025,1708037442607,-7523.46,0.00038647,7]
[314166026,1708037442616,-151.021624,0.00038648,24]
[314166027,1708037442625,-311.05,0.000387,3]
[314166028,1708037442635,-311.05,0.000387,3]
[314166029,1708037442645,-311.05,0.000387,3]
[314166030,1708037442654,-311.05,0.000387,3]
[314166031,1708037442665,-311.05,0.000387,3]
[314166032,1708037442674,-311.05,0.000387,3]
[314166033,1708037442684,-311.05,0.000387,3]
[314166034,1708037442694,-311.05,0.000387,3]
[314166035,1708037442705,-311.05,0.000387,3]
[314166036,1708037442716,-311.05,0.000387,3]
[314166037,1708037442727,-311.05,0.000387,3]
[314166038,1708037442737,-311.05,0.000387,3]
[314166039,1708037442746,-311.05,0.000387,3]
[314166041,1708037442755,-311.05,0.000387,3]
[314166043,1708037442765,-311.05,0.000387,3]
[314166045,1708037442774,-311.05,0.000387,3]
[314166047,1708037442783,-311.05,0.000387,3]
[314166049,1708037442793,-311.05,0.000387,3]
[314166051,1708037442802,-311.05,0.000387,3]
[314166053,1708037442811,-311.05,0.000387,3]
[314166055,1708037442820,-1313.0,0.00038701,7]
[314166057,1708037442829,-785.0,0.00038701,7]
[314166060,1708037442839,-910.0,0.00038701,7]
[314166062,1708037442848,-251.0,0.00038701,7]
[314166065,1708037442857,-151.021624,0.00038748,26]
[314166067,1708037442867,-158.78,0.00038748,2]
[314166069,1708037442876,-157.72755805,0.00038768,2]
[314166071,1708037442886,-35.52335023,0.0003877,7]
[314166073,1708037442898,-635.48664977,0.0003877,7]
[314166075,1708037442907,-671.01,0.0003877,7]
[314166077,1708037442916,-671.01,0.0003877,7]
[314166079,1708037442926,-671.01,0.0003877,7]
[314166081,1708037442936,-170.92530934,0.00038797,2]
[314166082,1708037442945,-248.15110798,0.00038804,2]
[314166083,1708037442955,-21123.66399809,0.00038819,3]
[314166084,1708037442966,-11955.20439353,0.00038819,3]
[314166085,1708037442978,-1321.86465,0.00038819,3]
[314166086,1708037442990,-4668.2450835,0.00038819,3]
[314166087,1708037443001,-2195.79642584,0.00038819,3]
[314166088,1708037445430,-15421.97956306,0.00038819,3]
[314166089,1708037445487,-841.16592613,0.00038819,3]
[314166090,1708037445500,-467.08892496,0.00038819,3]
[314166091,1708037445512,-530.64723781,0.00038819,3]
[314166092,1708037445545,-532.27672145,0.00038819,3]
[314166093,1708037445558,-1387.48650929,0.00038819,3]
[314166094,1708037445604,-1121.55,0.00038819,3]
[314166095,1708037445629,-29714.97755274,0.00038819,3]
[314166096,1708037445638,-754.1642652,0.00038821,2]
[314166097,1708037445647,-500.0,0.00038828,7]
[314166098,1708037445657,-519.31,0.00038828,7]
[314166099,1708037445666,-571.15,0.00038828,7]
[314166100,1708037445675,-500.0,0.00038828,7]
[314166101,1708037445685,-500.0,0.00038828,7]
[314166102,1708037445694,-500.0,0.00038828,7]
[314166103,1708037445703,-204.38115332,0.00038828,7]
[314166104,1708037445713,-572.13,0.00038828,7]
[314166105,1708037445722,-563.69,0.00038828,7]
[314166106,1708037445731,-500.0,0.00038828,7]
[314166107,1708037445740,-500.0,0.00038828,7]
[314166108,1708037445749,-1055.06,0.00038828,7]
[314166109,1708037445760,-500.0,0.00038828,7]
[314166110,1708037445770,-510.27,0.00038828,7]
[314166111,1708037445779,-500.0,0.00038828,7]
[314166113,1708037445788,-523.55,0.00038828,7]
[314166115,1708037445798,-500.0,0.00038828,7]
[314166116,1708037445807,-500.0,0.00038828,7]
[314166117,1708037445816,-500.0,0.00038828,7]
[314166118,1708037445825,-500.0,0.00038828,7]
[314166119,1708037445834,-500.0,0.00038828,7]
[314166120,1708037445843,-545.82,0.00038828,7]
[314166121,1708037445853,-500.0,0.00038828,7]
[314166122,1708037445862,-1061.98,0.00038828,7]
[314166123,1708037445871,-500.0,0.00038828,7]
[314166124,1708037445880,-511.62,0.00038828,7]
[314166125,1708037445889,-500.0,0.00038828,7]
[314166126,1708037445899,-500.0,0.00038828,7]
[314166127,1708037445908,-500.0,0.00038828,7]
[314166128,1708037445917,-8353.80529578,0.00038829,2]
[314166129,1708037445930,-870.2257524,0.00038829,2]
[314166130,1708037445941,-432.16299603,0.00038829,2]
[314166131,1708037445961,-2868.25258016,0.00038829,2]
[314166132,1708037447274,150.0,0.00029,15]
[314166133,1708037449652,-500.0,0.000353,2]
[314166134,1708037450773,-500.0,0.000353,2]
[314166135,1708037451264,-500.0,0.000353,2]
[314166136,1708037451854,-500.0,0.000353,2]
[314166137,1708037452262,-455.22890913,0.000353,2]
[314166138,1708037452667,-244.77109087,0.000353,2]
[314166139,1708037469821,71002.98231127,0.00023,2]
[314166140,1708037568141,714.56661676,0.0002509,2]
[314166141,1708037575690,738.29623454,0.000263,2]
[314166143,1708037682184,156.7537306,0.000263,2]
[314166145,1708038214784,1250.0,0.00025,3]
[314166146,1708038215911,1300.0,0.00027,3]
[314166147,1708038266325,236.25268828,0.00026865,2]
[314166148,1708038307959,567.04102897,5e-05,120]
[314166153,1708038631633,-252.22102971,0.00032355,2]
[314166154,1708038631645,-295.16897029,0.00032355,2]
[314166155,1708038631654,-536.11074432,0.0003285,2]
[314166156,1708038631664,-152.0,0.00033999,3]
[314166157,1708038631673,-871.32196784,0.00034208,4]
[314166158,1708038631689,-632.35818218,0.00034208,4]
[314166159,1708038631700,-1017.36783253,0.00034208,4]
[314166160,1708038631712,-547.40747628,0.00034208,4]
[314166161,1708038631724,-107.10454117,0.00034208,4]
[314166162,1708038631733,-155.07261367,0.00034261,2]
[314166163,1708038631742,-520.0,0.00034272,2]
[314166164,1708038631752,-250.0,0.00034273,111]
[314166165,1708038631761,-12626.74,0.00034343,2]
[314166166,1708038631772,-206.0,0.00034361,2]
[314166167,1708038631782,-160.28,0.00034408,2]
[314166168,1708038631792,-2037.05,0.00034408,2]
[314166169,1708038631801,-154.66,0.00034412,2]
[314166170,1708038631810,-150.0,0.00034433,2]
[314166171,1708038631820,-564.48,0.00034521,2]
[314166172,1708038631832,-728.54,0.0003455,2]
[314166173,1708038631843,-250.0,0.00034597,2]
[314166174,1708038631852,-547.39,0.00034618,2]
[314166175,1708038631862,-2000.0,0.00034667,2]
[314166176,1708038631871,-157.53,0.00034686,2]
[314166177,1708038631881,-175.91,0.00034697,2]
[314166178,1708038631891,-243.17150291,0.00034832,10]
[314166179,1708038631900,-5688.22129312,0.00034832,10]
[314166180,1708038631920,-1083.51079046,0.00034832,10]
[314166182,1708038631933,-94.94739269,0.00034832,10]
[314166183,1708038631944,-2188.54352619,0.0003485,10]
[314166184,1708038631955,-480.0,0.00034862,2]
[314166185,1708038631965,-177.34,0.00035,2]
[314166186,1708038631976,-159.17,0.00035156,2]
[314166187,1708038631986,-2177.0,0.000352,2]
[314166203,1708038632187,-165.69,0.00035272,2]
[314166204,1708038632197,-3173.97218889,0.0003529,2]
[314166205,1708038632207,-1044.35236561,0.00035299,2]
[314166206,1708038632217,-13358.0,0.000353,2]
[314166207,1708038632228,-185.79,0.00035358,2]
[314166208,1708038632237,-155.07261367,0.00035405,2]
[314166209,1708038632246,-159.17,0.00035449,2]
[314166210,1708038632255,-1841.47,0.0003547,2]
[314166211,1708038632264,-177.34,0.00035548,2]
[314166212,1708038632275,-203.33387695,0.00035699,2]
[314166213,1708038632285,-332.7172,0.000357,2]
[314166214,1708038632295,-2440.35760107,0.000357,2]
[314166215,1708038632307,-11725.72872314,0.000357,2]
[314166216,1708038632319,-1845.42721056,0.000357,2]
[314166217,1708038632331,-576.57357286,0.000357,2]
[314166218,1708038632343,-746.41878368,0.000357,2]
[314166219,1708038632357,-9196.69471139,0.000357,2]
[314166220,1708038632375,-4688.3572973,0.000357,2]
[314166221,1708038632384,-476.2594299,0.000357,2]
[314166222,1708038632408,-1905.76538012,0.000357,2]
[314166223,1708038632417,-159.17,0.00035742,2]
[314166224,1708038632426,-1000.0,0.0003579,2]
[314166225,1708038632436,-285.2569,0.0003579,2]
[314166226,1708038632445,-564.48,0.00035798,2]
[314166227,1708038632454,-6416.29246087,0.000358,2]
[314166228,1708038632466,-667.61891395,0.000358,2]
[314166229,1708038632477,-604.7260143,0.000358,2]
[314166230,1708038632488,-2579.3,0.000358,2]
[314166233,1708038637622,-989.56641088,0.000358,2]
[314166234,1708038637631,-4613.29847012,0.000358,2]
[314166236,1708038637643,-5630.4,0.000358,2]
[314166238,1708038637681,-1108.77575039,0.000358,2]
[314166239,1708038637694,-5677.97170208,0.000358,2]
[314166240,1708038637791,-33419.14846312,0.000358,2]
[314166241,1708038637910,-1320.547675,0.000358,2]
[314166245,1708038637991,-403.57769,0.000358,2]
[314166247,1708038638004,-1109.82394119,0.000358,2]
[314166251,1708038638029,-4042.566642,0.000358,2]
[314166253,1708038638042,-7442.804616,0.000358,2]
[314166541,1708038640904,-399.18805093,0.000358,2]
[314166543,1708038640917,-1263.83675024,0.000358,2]
[314166545,1708038640928,-448.47000004,0.000358,2]
[314166714,1708038642775,-30623.76164889,0.000358,2]
[314166716,1708038642785,-1385.53799114,0.000358,7]
[314166718,1708038642795,-500.0,0.000359,2]
[314166720,1708038642805,-803.0257,0.000359,2]
[314166722,1708038642814,-18547.72939259,0.000359,2]
[314166725,1708038642826,-5598.764225,0.000359,2]
[314166727,1708038642840,-5625.0,0.000359,2]
[314166730,1708038642857,-6856.79080435,0.000359,2]
[314166739,1708038642939,-23637.50659982,0.000359,2]
[314166741,1708038642951,-41024.36366245,0.000359,2]
[314166810,1708038645677,-203.33387695,0.00035899,2]
[314166811,1708038645687,-76.75017305,0.000359,2]
[314166812,1708038645788,-2605.26493395,0.000359,2]
[314166813,1708038645799,-1331.949996,0.000359,2]
[314166814,1708038645951,-1974.21330849,0.000359,2]
[314166815,1708038740148,-205.22,0.00034245,2]
[314166816,1708038802001,-155.5,0.00034245,2]
[314166817,1708038802412,-155.5,0.00034446,2]
[314166818,1708038853899,-155.0,0.00034647,4]
[314166836,1708039831965,-155.0,0.00032326,4]
[314166837,1708039831975,-333.0,0.00032326,2]
[314166838,1708039831984,-548.86,0.00032327,2]
[314166839,1708039831994,-211.0,0.00033233,2]
[314166840,1708039832004,-607.11,0.00034245,2]
[314166841,1708039832014,-250.0,0.00034245,111]
[314166842,1708039832024,-2000.0,0.00034245,2]
[314166843,1708039832033,-160.49955259,0.00034247,2]
[314166844,1708039832043,-157.53,0.00034346,2]
[314166845,1708039832052,-154.66,0.00034364,2]
[314166846,1708039832062,-200.34,0.00034367,2]
[314166847,1708039832071,-250.0,0.0003437,2]
[314166848,1708039832080,-390.54,0.0003437,2]
[314166849,1708039832089,-433.62,0.00034521,2]
[314166850,1708039832099,-160.49955259,0.00034578,2]
[314166851,1708039832109,-203.33387695,0.0003458,2]
[314166852,1708039832119,-18243.57846779,0.00034582,2]
[314166853,1708039832129,-999.99,0.00034582,2]
[314166854,1708039832138,-551.68,0.00034582,2]
[314166855,1708039832147,-1000.0,0.00034583,2]
[314166856,1708039832157,-548.86,0.00034591,2]
[314166857,1708039832167,-509.37921073,0.000346,2]
[314166858,1708039832177,-159.33,0.00034611,2]
[314166859,1708039832195,-155.0,0.00034647,4]
[314166860,1708039832210,-155.5,0.00034648,2]
[314166861,1708039832222,-155.5,0.00034849,2]
[314166866,1708039832236,-157.81,0.00034857,2]
[314166868,1708039832249,-218.85435261,0.00034858,10]
[314166870,1708039832258,-1705.87199564,0.00034858,10]
[314166871,1708039832269,-3175.2993641,0.00034858,10]
[314166874,1708039832281,-984.84458679,0.00034866,10]
[314166875,1708039832292,-160.49955259,0.00034908,2]
[314166876,1708039832304,-177.34,0.00035,2]
[314166877,1708039832316,-500.0,0.00035,2]
[314166878,1708039832328,-234.021624,0.00035048,4]
[314166879,1708039832340,-155.5,0.00035051,2]
[314166880,1708039832352,-234.021624,0.00035098,3]
[314166881,1708039832366,-234.021624,0.00035148,4]
[314166882,1708039832380,-234.021624,0.00035178,3]
[314166883,1708039832392,-234.021624,0.00035198,3]
[314166884,1708039832403,-2068.0,0.000352,2]
[314166885,1708039832414,-159.33,0.00035212,2]
[314166886,1708039832426,-160.49955259,0.00035239,2]
[314166887,1708039832438,-234.021624,0.00035248,4]
[314166888,1708039832448,-155.5,0.00035252,2]
[314166889,1708039832460,-1605.7,0.00035252,2]
[314166890,1708039832471,-165.72,0.00035272,2]
[314166891,1708039832484,-1319.96,0.00035272,15]
[314166892,1708039832495,-499.99,0.00035272,2]
[314166893,1708039832507,-166.14,0.00035272,2]
[314166894,1708039832519,-234.021624,0.00035278,3]
[314166895,1708039832530,-234.021624,0.00035298,3]
[314166896,1708039832540,-16094.0,0.000353,2]
[314166897,1708039832551,-234.021624,0.00035348,4]
[314166898,1708039832563,-234.021624,0.00035378,3]
[314166899,1708039832575,-212.021624,0.00035398,4]
[314166900,1708039832587,-234.021624,0.00035448,4]
[314166901,1708039832598,-155.5,0.00035454,2]
[314166902,1708039832610,-234.021624,0.00035478,3]
[314166903,1708039832621,-212.021624,0.00035498,4]
[314166904,1708039832634,-234.021624,0.00035548,3]
[314166905,1708039832643,-177.34,0.00035548,2]
[314166906,1708039832654,-500.0,0.00035548,2]
[314166907,1708039832665,-160.49955259,0.00035569,2]
[314166908,1708039832677,-234.021624,0.00035578,3]
[314166909,1708039832688,-1118.1045,0.000356,2]
[314166910,1708039832700,-16270.92448178,0.0003563,2]
[314166911,1708039832713,-234.021624,0.00035648,3]
[314166912,1708039832725,-155.5,0.00035655,2]
[314166913,1708039832736,-234.021624,0.00035678,4]
[314166914,1708039832748,-171.0777,0.0003569,2]
[314166915,1708039832760,-212.021624,0.00035698,5]
[314166916,1708039832770,-39090.95456232,0.00035698,2]
[314166917,1708039832779,-836.0974,0.000357,2]
[314166918,1708039832789,-4688.3573,0.000357,2]
[314166919,1708039832802,-2500.0,0.000357,2]
[314166920,1708039832812,-2877.79440377,0.000357,2]
[314166921,1708039832823,-1952.60910651,0.00035713,7]
[314166922,1708039832836,-234.021624,0.00035748,3]
[314166923,1708039832848,-2523.74854083,0.00035756,2]
[314166924,1708039832859,-234.021624,0.00035778,4]
[314166925,1708039832870,-150.0,0.00035788,2]
[314166926,1708039832881,-11519.9632421,0.0003579,9]
[314166927,1708039832893,-433.62,0.00035798,2]
[314166928,1708039832903,-257.68540442,0.00035798,4]
[314166929,1708039832913,-212.021624,0.00035798,5]
[314166930,1708039832923,-798.69573063,0.000358,3]
[314166931,1708039832934,-7109.6779,0.000358,2]
[314166932,1708039832944,-100000.0,0.000358,2]
[314166933,1708039832954,-2619.6624,0.000358,2]
[314166934,1708039832964,-500.0,0.000358,2]
[314166935,1708039832975,-245000.0,0.000358,2]
[314166936,1708039832986,-159.33,0.00035814,2]
[314166937,1708039832997,-155.5,0.00035857,2]
[314166938,1708039833008,-150.0,0.00035862,2]
[314166939,1708039833018,-212.021624,0.00035898,6]
[314166940,1708039833029,-851.33950985,0.000359,2]
[314166941,1708039833040,-152.97427393,0.000359,2]
[314166942,1708039833051,-501.83636436,0.000359,2]
[314166943,1708039833061,-160.49955259,0.000359,2]
[314166944,1708039833072,-3000.0,0.000359,2]
[314166945,1708039833082,-200.0,0.000359,2]
[314166946,1708039833093,-3623.72,0.00035935,5]
[314166947,1708039833103,-3603.68,0.00035935,5]
[314166948,1708039833113,-289.18766635,0.0003599,2]
[314166949,1708039833124,-170.92530935,0.00035996,2]
[314166950,1708039833134,-22610.02763677,0.00035996,8]
[314166951,1708039833144,-185.26729041,0.00035997,2]
[314166952,1708039833155,-212.021624,0.00035998,6]
[314166953,1708039833166,-156125.98592874,0.00036,2]
[314166954,1708039833181,-400.87049612,0.00036,2]
[314166955,1708039833203,-1408.80412938,0.00036,3]
[314166956,1708039833215,-1712.42770388,0.00036,3]
[314166957,1708039833228,-365.35210606,0.00036,3]
[314166958,1708039833252,-2958.08076918,0.00036,3]
[314166959,1708039833269,-20024.2869062,0.00036,3]
[314166960,1708039833283,-5164.6167272,0.00036,3]
[314166961,1708039833300,-44113.442856,0.00036,3]
[314166962,1708039833318,-679.91604307,0.00036,3]
[314166963,1708039837830,-205.0,0.00034024,2]
[314166964,1708039837839,-1837.44,0.0003582,2]
[314166965,1708039837849,-8323.36858313,0.00036,3]
[314166966,1708039837886,-724868.01344132,0.00036,3]
[314166967,1708039837941,-40265.37180982,0.00036,3]
[314166968,1708039837998,-103439.95052307,0.00036,3]
[314166969,1708039838008,-291095.0919187,0.00036,2]
[314166970,1708039838058,-8435.74536405,0.00036,2]
[314166971,1708039838068,-292.35,0.00036,7]
[314166972,1708039838077,-5000.0,0.00036,15]
[314166973,1708039838087,-200.34,0.00036011,2]
[314166974,1708039838096,-150.0,0.00036015,2]
[314166975,1708039838107,-159.17,0.00036035,2]
[314166976,1708039838116,-155.5,0.00036058,2]
[314166977,1708039838126,-1500.0,0.00036081,2]
[314166978,1708039838135,-289.18766635,0.00036086,2]
[314166979,1708039838146,-370.53458082,0.00036093,2]
[314166980,1708039838156,-177.34,0.00036096,2]
[314166981,1708039838165,-515.18351411,0.00036096,2]
[314166982,1708039838175,-212.021624,0.00036098,11]
[314166983,1708039838187,-501.8363643,0.00036106,2]
[314166984,1708039838201,-212.021624,0.00036198,11]
[314166985,1708039838210,-150.0,0.0003623,2]
[314166986,1708039838221,-155.5,0.00036259,2]
[314166988,1708039838231,-165.69,0.00036297,2]
[314166990,1708039838241,-212.021624,0.00036298,12]
[314166992,1708039838250,-150.0,0.00036308,2]
[314166995,1708039838259,-501.8363643,0.00036311,2]
[314166996,1708039838270,-159.17,0.00036328,2]
[314166998,1708039838279,-851.33950985,0.00036378,2]
[314167000,1708039838289,-212.021624,0.00036398,12]
[314167003,1708039838298,-155.0,0.000364,2]
[314167005,1708039838308,-150.0,0.000364,20]
[314167006,1708039838317,-258.69,0.000364,30]
[314167009,1708039838327,-159.33,0.00036415,2]
[314167010,1708039838336,-217.0,0.00036422,30]
[314167012,1708039838345,-151.0,0.00036422,30]
[314167014,1708039838354,-155.5,0.00036461,2]
[314167016,1708039838363,-212.021624,0.00036498,13]
[314167018,1708039838372,-501.8363643,0.00036517,2]
[314167020,1708039838381,-258.69,0.00036537,30]
[314167022,1708039838390,-212.021624,0.00036598,13]
[314167024,1708039838399,-292.35,0.000366,7]
[314167027,1708039838409,-159.17,0.00036621,2]
[314167028,1708039838418,-354.05,0.00036644,2]
[314167030,1708039838427,-155.5,0.00036662,2]
[314167032,1708039838437,-258.69,0.00036674,30]
[314167035,1708039838446,-150.0,0.00036679,2]
[314167037,1708039838456,-234.021624,0.00036698,17]
[314167039,1708039838465,-150.0,0.000367,2]
[314167040,1708039838474,-227.64625164,0.000367,2]
[314167043,1708039838484,-150.0,0.000367,2]
[314167045,1708039838493,-300.0,0.000367,5]
[314167047,1708039838502,-22610.02763667,0.00036715,9]
[314167049,1708039838512,-501.8363643,0.00036723,2]
[314167050,1708039838521,-434.61200068,0.00036724,2]
[314167053,1708039838530,-2877.79440369,0.00036758,2]
[314167055,1708039838539,-234.021624,0.00036798,17]
[314167057,1708039838548,-258.69,0.00036811,30]
[314167059,1708039838557,-39090.9545623,0.0003682,2]
[314167060,1708039838566,-150.0,0.00036824,2]
[314167062,1708039838575,-548.86,0.00036855,2]
[314167064,1708039838584,-851.33950985,0.00036855,2]
[314167066,1708039838593,-159.26338956,0.00036856,9]
[314167069,1708039838602,-155.5,0.00036864,2]
[314167070,1708039838611,-1952.60910649,0.00036883,8]
[314167072,1708039838620,-234.021624,0.00036898,18]
[314167075,1708039838629,-250.0,0.000369,2]
[314167076,1708039838638,-1500.0,0.00036907,2]
[314167078,1708039838647,-159.17,0.00036914,2]
[314167080,1708039838656,-501.8363643,0.00036929,2]
[314167082,1708039838665,-150.0,0.00036947,2]
[314167084,1708039838675,-258.69,0.00036948,30]
[314167087,1708039838685,-150.0,0.00036968,2]
[314167089,1708039838695,-234.021624,0.00036998,19]
[314167090,1708039838705,-1000.0,0.00037,2]
[314167092,1708039838714,-899.0,0.00037,2]
[314167094,1708039838724,-563.0,0.00037,2]
[314167096,1708039838733,-1847.0,0.00037,2]
[314167098,1708039838741,-191.26827364,0.00037008,2]
[314167100,1708039838750,-155.5,0.00037065,2]
[314167102,1708039838760,-433.62,0.00037075,2]
[314167105,1708039838770,-258.69,0.00037085,30]
[314167106,1708039838780,-234.021624,0.00037098,24]
[314167109,1708039838791,-150.0,0.00037125,2]
[314167111,1708039838801,-501.8363643,0.00037134,2]
[314167113,1708039838812,-250.0,0.00037174,2]
[314167115,1708039838822,-157.81,0.0003718,2]
[314167116,1708039838831,-234.021624,0.00037198,25]
[314167118,1708039838840,-292.35,0.000372,7]
[314167120,1708039838850,-159.17,0.00037207,2]
[314167122,1708039838858,-258.69,0.00037222,30]
[314167124,1708039838868,-492.89387823,0.00037248,5]
[314167126,1708039838877,-155.5,0.00037267,2]
[314167128,1708039838886,-205.0,0.00037271,9]
[314167130,1708039838896,-150.36398041,0.00037297,2]
[314167132,1708039838905,-234.021624,0.00037298,24]
[314167135,1708039838914,-205.21073047,0.000373,10]
[314167136,1708039838923,-150.0,0.00037312,2]
[314167139,1708039838933,-185.26729041,0.00037315,2]
[314167141,1708039838942,-1813.21416423,0.00037318,2]
[314167143,1708039838951,-2864.0732869,0.00037318,2]
[314167145,1708039838961,-6952.77267182,0.00037318,2]
[314167146,1708039838970,-395.68959335,0.00037318,2]
[314167149,1708039838979,-783.72386616,0.00037318,2]
[314167151,1708039838988,-851.33950985,0.00037333,2]
[314167153,1708039838997,-2523.74854075,0.00037335,2]
[314167155,1708039839006,-501.8363643,0.0003734,2]
[314167157,1708039839015,-151.0,0.00037372,120]
[314167159,1708039839024,-150.0,0.00037379,2]
[314167160,1708039839033,-3573.46,0.00037396,5]
[314167163,1708039839042,-234.021624,0.00037398,25]
[314167165,1708039839052,-169881.48643661,0.000374,5]
[314167166,1708039839062,-5000.0,0.00037418,3]
[314167168,1708039839071,-22610.02763667,0.00037433,10]
[314167171,1708039839081,-250.0,0.00037448,2]
[314167172,1708039839091,-155.5,0.00037468,2]
[314167174,1708039839100,-150.0,0.00037485,2]
[314167177,1708039839110,-234.021624,0.00037498,24]
[314167179,1708039839120,-159.17,0.000375,2]
[314167180,1708039839129,-152.97427392,0.000375,2]
[314167183,1708039839140,-150.0,0.00037518,2]
[314167184,1708039839150,-150.0,0.00037545,2]
[314167186,1708039839159,-501.8363643,0.00037546,2]
[314167188,1708039839168,-150.0,0.00037552,2]
[314167190,1708039839178,-150.0,0.00037589,2]
[314167193,1708039839187,-284.67449056,0.0003759,3]
[314167194,1708039839199,-200.0,0.00037597,3]
[314167196,1708039839208,-1165.16,0.00037601,2]
[314167198,1708039839217,-1000.0,0.00037604,10]
[314167200,1708039839227,-200.71638524,0.00037607,3]
[314167202,1708039839236,-220.30949498,0.00037608,4]
[314167204,1708039839246,-524.22459924,0.00037608,4]
[314167206,1708039839255,-2554.23615369,0.00037608,4]
[314167208,1708039839264,-1000.0,0.00037608,10]
[314167210,1708039839274,-150.65825515,0.00037615,3]
[314167212,1708039839284,-390.01977278,0.00037615,4]
[314167214,1708039839294,-200.31907233,0.00037617,2]
[314167216,1708039839303,-152.0,0.00037642,4]
[314167218,1708039839313,-150.0,0.00037644,2]
[314167220,1708039839322,-200.34,0.00037654,2]
[314167222,1708039839331,-155.5,0.0003767,2]
[314167224,1708039839341,-150.0,0.00037676,2]